[Event "14th Chennai GM Open 2023"]
[Site "Chennai"]
[Date "2024.01.03"]
[Round "6.3"]
[White "Fedorov, Alexei"]
[Black "Ziatdinov, Raset"]
[Result "1-0"]
[ECO "C54"]
[WhiteElo "2454"]
[BlackElo "2100"]
[Annotator "RC"]
[PlyCount "85"]
[EventDate "2023.12.31"]
[EventType "swiss"]
[EventCountry "IND"]
[SourceTitle "playchess.com"]
[Source "ChessBase"]
[SourceQuality "1"]
[TimeControl "5400+30"]

1. e4 {[%emt 0:00:03]} e5 {[%emt 0:00:03]} 2. Nf3 {[%emt 0:00:04]} Nc6 {[%emt 0:00:02]} 3. Bc4 {[%emt 0:00:06]} Bc5 {[%emt 0:00:05]} 4. c3 {[%emt 0:01:01]} Nf6 {[%emt 0:00:05]} 5. d3 {[%emt 0:00:03]} O-O {[%emt 0:00:09]} 6. Bg5 {[%emt 0:00:04]} h6 {[%emt 0:00:05]} 7. Bh4 {[%emt 0:00:03]} Be7 {[%emt 0:00:06]} 8. Nbd2 {[%emt 0:00:13]} d6 {[%emt 0:00:06]} 9. a4 {[%emt 0:00:07]} Be6 {[%emt 0:00:57]} 10. Bxf6 {[%emt 0:00:46]} Bxf6 {[%emt 0:00:07]} 11. Bxe6 {[%emt 0:00:03]} fxe6 {[%emt 0:00:12]} 12. h4 {[%emt 0:00:04]} Be7 {[%emt 0:02:43]} 13. b4 {[%emt 0:05:35]} Qd7 {[%emt 0:00:36]} 14. O-O {[%emt 0:04:54]} Rf7 {[%emt 0:01:35]} 15. g3 {[%emt 0:00:11]} Raf8 {[%emt 0:00:20]} 16. Kg2 {[%emt 0:00:19]} Bd8 {[%emt 0:03:06]} 17. Nh2 {[%emt 0:04:18]} Ne7 {[%emt 0:00:21]} 18. Qg4 {[%emt 0:02:29]} Rf6 {[%emt 0:05:44]} 19. h5 {[%emt 0:01:59]} c6 {[%emt 0:05:12]} 20. a5 {[%emt 0:05:22]} Bc7 {[%emt 0:01:42]} 21. Qe2 {[%emt 0:00:22]} Bb8 {[%emt 0:03:30]} 22. d4 {[%emt 0:03:59]} exd4 {[%emt 0:00:58]} 23. cxd4 {[%emt 0:00:03]} a6 {[%emt 0:01:19]} 24. f4 {[%emt 0:08:12]} Ba7 {[%emt 0:00:18]} 25. Rad1 {[%emt 0:03:41]} R6f7 {[%emt 0:06:52]} 26. Nc4 {[%emt 0:00:52]} Rd8 {[%emt 0:04:10]} 27. Nf3 {[%emt 0:04:36]} Rff8 {[%emt 0:00:31]} 28. Nh4 {[%emt 0:01:41]} Qc8 {[%emt 0:02:15]} 29. e5 {[%emt 0:08:14]} dxe5 {[%emt 0:00:38]} 30. dxe5 {[%emt 0:00:09]} Rd5 {[%emt 0:01:20]} 31. Nd6 {[%emt 0:04:42]} Qd7 {[%emt 0:00:26]} 32. Ng6 {[%emt 0:04:11]} Nxg6 {[%emt 0:00:39]} 33. hxg6 {[%emt 0:00:03]} Rd8 {[%emt 0:02:25]} 34. Rxd5 {[%emt 0:15:58]} cxd5 {[%emt 0:00:51]} 35. f5 {[%emt 0:00:03]} exf5 {[%emt 0:00:41]} 36. Rxf5 {[%emt 0:00:25]} Bb8 {[%emt 0:18:51]} 37. Rf7 {[%emt 0:03:42]} Qe6 {[%emt 0:01:35]} 38. Nf5 {[%emt 0:00:15]} Kh8 {[%emt 0:01:44]} 39. Qh5 {[%emt 0:06:30]} Qxe5 {[%emt 0:07:46]} 40. Rxg7 {[%emt 0:00:32]} Qxg7 {[%emt 0:01:52]} 41. Nxg7 {[%emt 0:00:05]} Kxg7 {[%emt 0:00:07]} 42. Qf5 {[%emt 0:00:22]} Rf8 {[%emt 0:00:12]} 43. Qe6 {[%emt 0:00:39]} 1-0

[Event "14th Chennai GM Open 2023"]
[Site "Chennai"]
[Date "2024.01.03"]
[Round "6.4"]
[White "Pawar, Harshit"]
[Black "Manik, Mikulas"]
[Result "1/2-1/2"]
[ECO "B23"]
[WhiteElo "1945"]
[BlackElo "2343"]
[Annotator "RC"]
[PlyCount "60"]
[EventDate "2023.12.31"]
[EventType "swiss"]
[EventCountry "IND"]
[SourceTitle "playchess.com"]
[Source "ChessBase"]
[SourceQuality "1"]
[TimeControl "5400+30"]

1. e4 {[%emt 0:00:23]} c5 {[%emt 0:00:01]} 2. Nc3 {[%emt 0:00:11]} Nc6 {[%emt 0:00:02]} 3. Bb5 {[%emt 0:00:02]} Nd4 {[%emt 0:00:11]} 4. Bc4 {[%emt 0:00:03]} Nf6 {[%emt 0:00:19]} 5. Nge2 {[%emt 0:01:09]} a6 {[%emt 0:00:47]} 6. a4 {[%emt 0:00:37]} e6 {[%emt 0:00:15]} 7. O-O {[%emt 0:00:13]} d5 {[%emt 0:04:26]} 8. exd5 {[%emt 0:01:33]} exd5 {[%emt 0:00:03]} 9. Ba2 {[%emt 0:00:01]} Bg4 {[%emt 0:04:28]} 10. f3 {[%emt 0:01:10]} Be6 {[%emt 0:00:31]} 11. d3 {[%emt 0:02:41]} Bd6 {[%emt 0:12:01]} 12. Bg5 {[%emt 0:05:38]} O-O {[%emt 0:03:51]} 13. Nxd4 {[%emt 0:06:01]} cxd4 {[%emt 0:00:08]} 14. Ne2 {[%emt 0:00:02]} Rc8 {[%emt 0:00:36]} 15. Bb3 {[%emt 0:02:14]} Bc5 {[%emt 0:05:16]} 16. Qd2 {[%emt 0:08:18]} Re8 {[%emt 0:03:17]} 17. Kh1 {[%emt 0:04:10]} Rc6 {[%emt 0:02:49]} 18. Qf4 {[%emt 0:03:59]} h6 {[%emt 0:02:29]} 19. Bxf6 {[%emt 0:00:14]} Qxf6 {[%emt 0:00:17]} 20. Qxf6 {[%emt 0:00:19]} gxf6 {[%emt 0:00:02]} 21. Nf4 {[%emt 0:00:35]} Kg7 {[%emt 0:02:36]} 22. Rae1 {[%emt 0:04:31]} Bb4 {[%emt 0:01:47]} 23. Rd1 {[%emt 0:03:26]} Bd6 {[%emt 0:03:04]} 24. Ne2 {[%emt 0:00:24]} Bc5 {[%emt 0:00:06]} 25. Rde1 {[%emt 0:02:11]} Rd8 {[%emt 0:01:36]} 26. Nf4 {[%emt 0:01:31]} Bb4 {[%emt 0:00:18]} 27. Rd1 {[%emt 0:00:16]} Bd6 {[%emt 0:00:09]} 28. Ne2 {[%emt 0:00:12]} Bc5 {[%emt 0:00:07]} 29. Nf4 {[%emt 0:00:27]} Bd6 {[%emt 0:00:06]} 30. Ne2 {[%emt 0:00:03]} Bc5 {[%emt 0:00:54]} 1/2-1/2

[Event "14th Chennai GM Open 2023"]
[Site "Chennai"]
[Date "2024.01.03"]
[Round "6.5"]
[White "Aakash G"]
[Black "Laxman, R.R."]
[Result "1/2-1/2"]
[ECO "E32"]
[WhiteElo "1823"]
[BlackElo "2338"]
[Annotator "RC"]
[PlyCount "129"]
[EventDate "2023.12.31"]
[EventType "swiss"]
[EventCountry "IND"]
[SourceTitle "playchess.com"]
[Source "ChessBase"]
[SourceQuality "1"]
[TimeControl "5400+30"]

1. d4 {[%emt 0:00:04]} Nf6 {[%emt 0:00:07]} 2. c4 {[%emt 0:00:06]} e6 {[%emt 0:00:05]} 3. Nc3 {[%emt 0:00:11]} Bb4 {[%emt 0:00:06]} 4. Qc2 {[%emt 0:00:06]} b6 {[%emt 0:00:08]} 5. a3 {[%emt 0:00:47]} Bxc3+ {[%emt 0:00:09]} 6. Qxc3 {[%emt 0:00:04]} Bb7 {[%emt 0:00:28]} 7. Bg5 {[%emt 0:00:10]} h6 {[%emt 0:00:43]} 8. Bh4 {[%emt 0:00:10]} g5 {[%emt 0:00:18]} 9. Bg3 {[%emt 0:00:07]} Ne4 {[%emt 0:00:12]} 10. Qc2 {[%emt 0:00:09]} d6 {[%emt 0:00:13]} 11. e3 {[%emt 0:00:29]} Nd7 {[%emt 0:00:30]} 12. Nf3 {[%emt 0:00:37]} f5 {[%emt 0:02:18]} 13. Bd3 {[%emt 0:04:37]} Qf6 {[%emt 0:03:14]} 14. O-O-O {[%emt 0:02:47]} O-O-O {[%emt 0:01:22]} 15. Ne1 {[%emt 0:01:55]} h5 {[%emt 0:05:23]} 16. f3 {[%emt 0:04:40]} Nxg3 {[%emt 0:01:52]} 17. hxg3 {[%emt 0:00:08]} h4 {[%emt 0:00:55]} 18. gxh4 {[%emt 0:03:13]} Rxh4 {[%emt 0:01:23]} 19. Rxh4 {[%emt 0:03:44]} gxh4 {[%emt 0:00:03]} 20. d5 {[%emt 0:02:58]} Rf8 {[%emt 0:01:38]} 21. dxe6 {[%emt 0:00:45]} Qxe6 {[%emt 0:00:02]} 22. Qf2 {[%emt 0:00:13]} f4 {[%emt 0:03:10]} 23. Qxh4 {[%emt 0:06:38]} Qxe3+ {[%emt 0:00:37]} 24. Kb1 {[%emt 0:00:14]} Qe5 {[%emt 0:02:40]} 25. Qg4 {[%emt 0:05:28]} Bc6 {[%emt 0:04:46]} 26. Bc2 {[%emt 0:01:28]} Qf6 {[%emt 0:04:42]} 27. Nd3 {[%emt 0:01:15]} a5 {[%emt 0:02:38]} 28. Re1 {[%emt 0:04:12]} Qf7 {[%emt 0:01:09]} 29. Qe6 {[%emt 0:02:25]} Qxe6 {[%emt 0:03:48]} 30. Rxe6 {[%emt 0:00:12]} Nc5 {[%emt 0:00:13]} 31. Re2 {[%emt 0:00:35]} Nxd3 {[%emt 0:00:39]} 32. Bxd3 {[%emt 0:00:08]} Re8 {[%emt 0:01:22]} 33. Kc2 {[%emt 0:02:46]} Rxe2+ {[%emt 0:00:30]} 34. Bxe2 {[%emt 0:00:06]} Kd7 {[%emt 0:00:02]} 35. b4 {[%emt 0:01:05]} Ke6 {[%emt 0:00:28]} 36. Bd3 {[%emt 0:01:28]} Ke5 {[%emt 0:00:13]} 37. Kc3 {[%emt 0:00:08]} Bd7 {[%emt 0:00:45]} 38. Bc2 {[%emt 0:01:56]} axb4+ {[%emt 0:04:07]} 39. axb4 {[%emt 0:00:16]} c5 {[%emt 0:03:27]} 40. bxc5 {[%emt 0:01:47]} bxc5 {[%emt 0:00:06]} 41. Be4 {[%emt 0:01:25]} Be6 {[%emt 0:01:12]} 42. Bd3 {[%emt 0:02:47]} Kf6 {[%emt 0:00:23]} 43. Kd2 {[%emt 0:00:21]} Kg5 {[%emt 0:00:24]} 44. Ke1 {[%emt 0:02:47]} Kh4 {[%emt 0:00:07]} 45. Kf2 {[%emt 0:00:19]} d5 {[%emt 0:00:13]} 46. cxd5 {[%emt 0:00:21]} Bxd5 {[%emt 0:00:02]} 47. Be4 {[%emt 0:13:44]} Bb3 {[%emt 0:01:46]} 48. Bh7 {[%emt 0:00:24]} Bd5 {[%emt 0:01:18]} 49. Be4 {[%emt 0:00:49]} Ba2 {[%emt 0:00:06]} 50. Bc6 {[%emt 0:01:50]} c4 {[%emt 0:00:26]} 51. Be4 {[%emt 0:00:53]} Bb3 {[%emt 0:03:48]} 52. Bd5 {[%emt 0:00:52]} Ba2 {[%emt 0:00:08]} 53. Be4 {[%emt 0:09:52]} c3 {[%emt 0:02:51]} 54. Bd3 {[%emt 0:01:46]} Bb3 {[%emt 0:00:17]} 55. Ke2 {[%emt 0:00:11]} Kg3 {[%emt 0:00:09]} 56. Be4 {[%emt 0:00:21]} Kxg2 {[%emt 0:01:18]} 57. Kd3 {[%emt 0:00:24]} c2 {[%emt 0:00:14]} 58. Kd2 {[%emt 0:00:10]} Kf2 {[%emt 0:00:06]} 59. Bc6 {[%emt 0:00:07]} Kg3 {[%emt 0:08:40]} 60. Kc1 {[%emt 0:01:08]} Kh4 {[%emt 0:00:24]} 61. Kd2 {[%emt 0:00:41]} Kg5 {[%emt 0:00:57]} 62. Kc1 {[%emt 0:00:47]} Kf6 {[%emt 0:00:17]} 63. Be4 {[%emt 0:01:01]} Ke5 {[%emt 0:00:13]} 64. Bxc2 {[%emt 0:00:19]} Bxc2 {[%emt 0:00:07]} 65. Kxc2 {[%emt 0:00:04]} 1/2-1/2

[Event "14th Chennai GM Open 2023"]
[Site "Chennai"]
[Date "2024.01.03"]
[Round "6.6"]
[White "Aronyak Ghosh"]
[Black "Nithin Babu"]
[Result "1-0"]
[ECO "A38"]
[WhiteElo "2545"]
[BlackElo "2177"]
[Annotator "TA"]
[PlyCount "93"]
[EventDate "2023.12.31"]
[EventType "swiss"]
[EventCountry "IND"]
[SourceTitle "playchess.com"]
[Source "ChessBase"]
[SourceQuality "1"]
[TimeControl "5400+30"]

{[%evp 18,93,24,15,20,9,12,15,23,20,32,9,17,0,22,0,-2,0,15,0,0,0,20,-4,54,20,29,15,25,7,140,0,0,0,0,0,0,0,0,0,0,0,0,0,0,-58,-58,-58,-58,-59,-59,-110,-97,-137,-59,-59,0,-137,-137,-387,-290,-335,-282,-669,-553,-645,-633,-578,89,95,82,92,1266,1082,2085,2235,1974,1814]} 1. Nf3 {[%emt 0:01:05]} Nf6 {[%emt 0:00:21]} 2. c4 {[%emt 0:00:20]} g6 {[%emt 0:00:10]} 3. b3 {[%emt 0:00:35]} Bg7 {[%emt 0:00:17]} 4. Bb2 {[%emt 0:00:05]} O-O {[%emt 0:00:29]} 5. g3 {[%emt 0:00:13]} c5 {[%emt 0:01:04]} 6. Bg2 {[%emt 0:00:13]} d6 {[%emt 0:01:14]} 7. O-O {[%emt 0:06:04]} e5 {[%emt 0:01:08]} 8. Nc3 {[%emt 0:00:05]} Nc6 {[%emt 0:01:32]} 9. d3 {[%emt 0:00:11]} h6 {[%emt 0:02:57]} 10. Nd2 {[%emt 0:01:12]} Be6 {[%emt 0:03:31] A38: Symmetrical English vs ...g6: 4 Bg2 Bg7 5 Nf3 Nf6.} 11. Nde4 {[%emt 0:02:25]} Ne8 {[%emt 0:03:52] 11...Qd7 is the modern continuation.} 12. Nd5 {[%emt 0:00:52]} Ne7 {[%emt 0:05:36] The position is equal.} 13. Nxe7+ {[%emt 0:04:27]} Qxe7 {[%emt 0:00:03] [#]} 14. a3 $146 {[%emt 0:00:06]} ({Predecessor:} 14. Qd2 f5 15. Nc3 Nf6 16. Rab1 Kh7 17. a3 Rad8 18. b4 b6 19. Nd5 Nxd5 20. cxd5 {½-½ Bendig,F (2309)-Eckhardt,T (2449) W-ch32 sf09 email 2008}) 14... Rb8 {[%emt 0:07:56]} 15. b4 {[%emt 0:13:33]} b6 {[%emt 0:03:09]} 16. Qd2 {[%emt 0:05:20]} f5 {[%emt 0:03:41]} 17. Nc3 {[%emt 0:02:12]} Nf6 {[%emt 0:00:59]} 18. Rab1 {[%emt 0:01:30]} h5 {[%emt 0:04:53]} 19. bxc5 {[%emt 0:02:24]} dxc5 {[%emt 0:05:10]} 20. e4 {[%emt 0:07:48][%cal Be2e4,Be4d5][%mdl 32] [#]} h4 {[%emt 0:09:56]} 21. Nd5 {[%emt 0:03:27]} ({But not} 21. gxh4 Nh5 $11) 21... Nxd5 {[%emt 0:04:08]} 22. exd5 {[%emt 0:00:43]} Bd7 {[%emt 0:00:41]} 23. f4 {[%emt 0:01:51]} hxg3 {[%emt 0:02:32]} (23... exf4 $1 $11 {keeps the balance.} 24. Rfe1 (24. Qxf4 Rbe8 $11) (24. Rxf4 Bxb2 25. Rxb2 hxg3 $11) 24... Qd6 25. Qxf4 (25. gxf4 Bxb2 26. Rxb2 Rbe8 $11) 25... Qxf4 26. gxf4 Bxb2 27. Rxb2 Rfe8) 24. hxg3 {[%emt 0:09:57]} ({Only move:} 24. fxe5 $1 $16 gxh2+ 25. Kh1) 24... exf4 $11 {[%emt 0:01:11]} 25. Rbe1 {[%emt 0:00:16]} Qd6 {[%emt 0:01:07]} 26. Bxg7 {[%emt 0:00:39]} Kxg7 {[%emt 0:00:13]} 27. gxf4 {[%emt 0:00:26]} Rbe8 {[%emt 0:02:33]} 28. Re5 {[%emt 0:01:47]} Rxe5 {[%emt 0:05:07]} 29. Qb2 $1 {[%emt 0:00:43][%mdl 64] Pin} Rfe8 {[%emt 0:01:00][%cal Og6g5]} 30. Re1 {[%emt 0:00:05][%mdl 64] Pin} Kf6 {[%emt 0:00:34][%cal Og6g5]} 31. Kf2 {[%emt 0:00:43] [#]} (31. Bf1 $1 $11 Qb8 32. fxe5+ Rxe5 33. Qh2) 31... g5 $1 $15 {[%emt 0:01:31]} 32. fxe5+ {[%emt 0:00:39]} Rxe5 {[%emt 0:00:06]} 33. Bh3 {[%emt 0:00:50]} Be8 {[%emt 0:04:04]} 34. Kg3 {[%emt 0:02:07]} ({White should try} 34. Bg2 $15) 34... Bh5 {[%emt 0:01:49] Threatens to win with ...f4+.} 35. Kf2 {[%emt 0:02:39]} Bg6 {[%emt 0:06:23]} (35... f4 $1 $17 {...g4 would be deadly.} 36. Bd7 Bg6) 36. a4 {[%emt 0:00:20]} f4 {[%emt 0:02:54]} (36... Qc7 $15) 37. Be6 {[%emt 0:01:29]} (37. Bg4 $1 $11 {was the only way to keep the balance.}) 37... Bf5 $17 {[%emt 0:04:12]} (37... Bxd3 38. Qc3 Bg6 39. Qh3 $15) 38. Rh1 $2 {[%emt 0:03:18]} (38. Bg8 $17 {was worth a try.}) 38... Bxe6 $19 {[%emt 0:01:46]} ({Weaker is} 38... Bxd3 39. Qc3 Be4 40. Rh8 $11) 39. Rh6+ {[%emt 0:00:13]} Ke7 {[%emt 0:02:13][%cal Og5g4]} 40. Qa1 $2 {[%emt 0:01:03] [#]} (40. dxe6 Qd4+ 41. Qxd4 cxd4 42. Rg6) 40... g4 $1 {[%emt 0:05:35] White must now prevent ...g3+.} 41. Qh1 {[%emt 0:00:14]} g3+ {[%emt 0:00:44]} 42. Kf1 {[%emt 0:00:01] [#]} Kd8 $2 {[%emt 0:01:02]} 43. d4 $16 {[%emt 0:01:22] Some like it hot} Rg5 {[%emt 0:02:03] [#] Strongly threatening ...g2+.} (43... cxd4 $2 44. dxe6 $18) 44. Qh4 $1 {[%emt 0:00:35]} g2+ $2 {[%emt 0:00:30][%mdl 8192]} (44... Bh3+ $16 45. Kg1 Qe7 46. Rh8+ Kc7) 45. Kg1 $18 {[%emt 0:00:02][%cal Oh6e6] White is clearly winning.} Qe7 {[%emt 0:00:26]} 46. Rxe6 {[%emt 0:00:16]} Qg7 {[%emt 0:00:25]} 47. Re5 {[%emt 0:00:09] White used his chance. Artfully played by Aronyak Ghosh.   Weighted Error Value: White=0.59/Black=0.26 (precise)} (47. Qxf4 Qxd4+ 48. Qxd4 cxd4 $15) 1-0

[Event "14th Chennai GM Open 2023"]
[Site "Chennai"]
[Date "2024.01.03"]
[Round "6.7"]
[White "Savchenko, Boris"]
[Black "Matta, Vinay Kumar"]
[Result "1-0"]
[ECO "E73"]
[WhiteElo "2489"]
[BlackElo "2132"]
[Annotator "TA"]
[PlyCount "63"]
[EventDate "2023.12.31"]
[EventType "swiss"]
[EventCountry "IND"]
[SourceTitle "playchess.com"]
[Source "ChessBase"]
[SourceQuality "1"]
[TimeControl "5400+30"]

{[%evp 12,63,56,59,61,15,25,16,21,14,17,9,19,-32,0,0,0,-29,-40,-37,103,100,100,94,193,184,192,171,214,218,230,225,700,716,645,378,752,425,416,410,382,406,787,481,1825,1664,29976,29977,29977,29978,29976,29977,29974,29975]} 1. d4 {[%emt 0:02:49]} Nf6 {[%emt 0:00:06]} 2. c4 {[%emt 0:00:22]} g6 {[%emt 0:00:08]} 3. Nc3 {[%emt 0:00:54]} Bg7 {[%emt 0:00:07]} 4. e4 {[%emt 0:01:28]} d6 {[%emt 0:00:10]} 5. Be2 {[%emt 0:00:27]} O-O {[%emt 0:00:17]} 6. g4 {[%emt 1:27:30]} e5 {[%emt 0:00:46]} 7. d5 $1 {[%emt 0:00:00]} Na6 {[%emt 0:00:29] E73: King's Indian: Averbakh Variation without 6...c5.} 8. g5 {[%emt 0:00:00]} (8. h4 $14 {is more appropriate.}) 8... Nd7 $11 {[%emt 0:04:39]} 9. Be3 {[%emt 0:00:00]} f5 {[%emt 0:02:14] The position is equal.} 10. gxf6 {[%emt 0:00:00]} Nxf6 {[%emt 0:01:10] [#]} 11. h4 $146 {[%emt 0:00:00]} ({Predecessor:} 11. h3 c6 12. dxc6 bxc6 13. Qd2 Qe7 14. O-O-O Rd8 15. Bg5 Nc7 16. h4 Be6 17. h5 {½-½ Pisu,R (2223)-Craciun,A (2090) Arad op 13th 2020 (8)}) 11... Nc5 {[%emt 0:01:37]} 12. Bf3 {[%emt 0:00:00]} (12. Bxc5 $11 dxc5 13. h5) 12... a5 {[%emt 0:01:41]} (12... c6 $5) 13. h5 {[%emt 0:00:00]} gxh5 $1 {[%emt 0:01:19]} 14. Bxc5 {[%emt 0:00:00]} dxc5 {[%emt 0:00:13]} 15. Bxh5 {[%emt 0:00:00]} Nxh5 {[%emt 0:01:05]} (15... Ra6 $15 {keeps the upper hand.} 16. Be2 Rb6) 16. Qxh5 $16 {[%emt 0:00:00] Black is on the road to losing.} h6 {[%emt 0:00:21]} 17. Nf3 {[%emt 0:00:00]} Qf6 {[%emt 0:34:32]} (17... Ra6 $16 {might work better.}) 18. Ke2 $18 {[%emt 0:00:00]} Bd7 {[%emt 0:04:17]} 19. Rag1 {[%emt 0:00:00][%csl LRe5,LRh6] Strongly threatening Rg6.} Be8 {[%emt 0:02:04]} 20. Qh3 {[%emt 0:00:00]} (20. Qxe5 $2 {perishes.} Qxf3+ 21. Kd2 Rf7 $19) 20... Ra6 {[%emt 0:16:32]} 21. Rg3 {[%emt 0:00:00]} Bg6 $2 {[%emt 0:03:12]} (21... Rd6 22. Rhg1 Rf7) 22. Rhg1 {[%emt 0:00:00]} Qf7 {[%emt 0:01:15]} 23. Nb5 {[%emt 0:00:00] aiming for Kd1.} Rf6 $2 {[%emt 0:03:59] [#]} (23... Kh8 24. Nxc7 Qxc7) 24. Nxc7 $1 {[%emt 0:00:00][%mdl 576] Deflection} Qxc7 {[%emt 0:15:14]} 25. Rxg6 {[%emt 0:00:00]} Rxg6 {[%emt 0:00:44]} 26. Rxg6 {[%emt 0:00:00]} Rf4 {[%emt 0:00:12] Black is weak on the light squares} (26... Qf7 $142) 27. Ke3 {[%emt 0:00:00]} Kh7 {[%emt 0:01:32]} (27... Rf6 $142) 28. Qh5 {[%emt 0:00:00]} a4 {[%emt 0:02:14]} 29. Ng5+ {[%emt 0:00:00] White mates.} Kh8 {[%emt 0:00:23]} 30. Rxh6+ {[%emt 0:00:00]} Bxh6 {[%emt 0:00:41]} 31. Qxh6+ {[%emt 0:00:00]} Kg8 {[%emt 0:00:04]} 32. Qg6+ {[%emt 0:00:00] A cool game by Savchenko.   Weighted Error Value: White=0.57/Black=0.89} 1-0

[Event "14th Chennai GM Open 2023"]
[Site "Chennai"]
[Date "2024.01.03"]
[Round "6.8"]
[White "Kulkarni, Vinayak"]
[Black "Glek, Igor"]
[Result "0-1"]
[ECO "A87"]
[WhiteElo "1976"]
[BlackElo "2429"]
[Annotator "RC"]
[PlyCount "70"]
[EventDate "2023.12.31"]
[EventType "swiss"]
[EventCountry "IND"]
[SourceTitle "playchess.com"]
[Source "ChessBase"]
[SourceQuality "1"]
[TimeControl "5400+30"]

1. Nf3 {[%emt 0:00:04]} f5 {[%emt 0:04:46]} 2. g3 {[%emt 0:00:27]} Nf6 {[%emt 0:00:05]} 3. Bg2 {[%emt 0:00:10]} g6 {[%emt 0:00:27]} 4. O-O {[%emt 0:00:20]} Bg7 {[%emt 0:00:02]} 5. d4 {[%emt 0:00:23]} O-O {[%emt 0:00:10]} 6. c4 {[%emt 0:00:19]} d6 {[%emt 0:00:05]} 7. b4 {[%emt 0:01:19]} c6 {[%emt 0:03:32]} 8. a4 {[%emt 0:03:10]} e5 {[%emt 0:00:48]} 9. dxe5 {[%emt 0:06:03]} dxe5 {[%emt 0:00:22]} 10. Qb3 {[%emt 0:02:16]} e4 {[%emt 0:00:12]} 11. Rd1 {[%emt 0:02:34]} Qe7 {[%emt 0:00:42]} 12. Nd4 {[%emt 0:02:39]} Rd8 {[%emt 0:00:53]} 13. e3 {[%emt 0:05:00]} Kh8 {[%emt 0:05:13]} 14. Bb2 {[%emt 0:05:59]} Nbd7 {[%emt 0:03:03]} 15. Na3 {[%emt 0:11:27]} Ne5 {[%emt 0:04:20]} 16. c5 {[%emt 0:02:57]} Nd3 {[%emt 0:05:25]} 17. Bc3 {[%emt 0:06:41]} a5 {[%emt 0:04:10]} 18. bxa5 {[%emt 0:08:27]} Nd5 {[%emt 0:02:48]} 19. Bf1 {[%emt 0:08:35]} Nxc5 {[%emt 0:08:27]} 20. Qc2 {[%emt 0:02:27]} Nxc3 {[%emt 0:03:53]} 21. Qxc3 {[%emt 0:00:18]} Ne6 {[%emt 0:02:40]} 22. Nac2 {[%emt 0:08:31]} c5 {[%emt 0:10:38]} 23. Qa3 {[%emt 0:00:16]} Bf6 {[%emt 0:04:49]} 24. Nxe6 {[%emt 0:03:05]} Rxd1 {[%emt 0:02:10]} 25. Rxd1 {[%emt 0:00:52]} Bxe6 {[%emt 0:00:03]} 26. Na1 {[%emt 0:03:23]} Rxa5 {[%emt 0:00:30]} 27. Nb3 {[%emt 0:01:08]} Ra8 {[%emt 0:00:38]} 28. Bb5 {[%emt 0:01:34]} b6 {[%emt 0:03:13]} 29. Nc1 {[%emt 0:00:59]} Qg7 {[%emt 0:05:27]} 30. Rd2 {[%emt 0:01:43]} Bc3 {[%emt 0:00:10]} 31. Rc2 {[%emt 0:00:43]} Bb4 {[%emt 0:00:07]} 32. Qb2 {[%emt 0:00:17]} Qxb2 {[%emt 0:02:56]} 33. Rxb2 {[%emt 0:00:06]} Rd8 {[%emt 0:07:51]} 34. Na2 {[%emt 0:00:26]} Rd2 {[%emt 0:01:48]} 35. Rxb4 {[%emt 0:00:31]} Bxa2 {[%emt 0:00:13]} 0-1

[Event "14th Chennai GM Open 2023"]
[Site "Chennai"]
[Date "2024.01.03"]
[Round "6.9"]
[White "Jake Shanty"]
[Black "Viani Antonio Dcunha"]
[Result "1/2-1/2"]
[ECO "D40"]
[WhiteElo "1903"]
[BlackElo "2407"]
[Annotator "RC"]
[PlyCount "102"]
[EventDate "2023.12.31"]
[EventType "swiss"]
[EventCountry "IND"]
[SourceTitle "playchess.com"]
[Source "ChessBase"]
[SourceQuality "1"]
[TimeControl "5400+30"]

1. c4 {[%emt 0:00:03]} e6 {[%emt 0:00:14]} 2. d4 {[%emt 0:01:35]} Nf6 {[%emt 0:00:11]} 3. Nf3 {[%emt 0:01:09]} d5 {[%emt 0:01:07]} 4. e3 {[%emt 0:02:32]} Be7 {[%emt 0:02:37]} 5. Nc3 {[%emt 0:01:01]} O-O {[%emt 0:00:26]} 6. Bd3 {[%emt 0:00:53]} c5 {[%emt 0:02:08]} 7. cxd5 {[%emt 0:06:23]} exd5 {[%emt 0:01:27]} 8. dxc5 {[%emt 0:00:36]} Nbd7 {[%emt 0:02:36]} 9. O-O {[%emt 0:03:53]} Nxc5 {[%emt 0:00:12]} 10. Be2 {[%emt 0:14:03]} Nce4 {[%emt 0:07:57]} 11. Bd2 {[%emt 0:05:14]} Nxd2 {[%emt 0:07:31]} 12. Qxd2 {[%emt 0:02:09]} Ne4 {[%emt 0:01:13]} 13. Qc2 {[%emt 0:20:13]} Nxc3 {[%emt 0:04:47]} 14. Qxc3 {[%emt 0:00:45]} Bf6 {[%emt 0:01:41]} 15. Qd2 {[%emt 0:11:04]} Qb6 {[%emt 0:02:48]} 16. Nd4 {[%emt 0:00:26]} Rd8 {[%emt 0:09:27]} 17. Rac1 {[%emt 0:01:42]} Be5 {[%emt 0:01:25]} 18. Rfd1 {[%emt 0:06:38]} g6 {[%emt 0:02:01]} 19. Bf3 {[%emt 0:02:13]} Qf6 {[%emt 0:05:42]} 20. Qe2 {[%emt 0:01:58]} h5 {[%emt 0:00:24]} 21. Rd2 {[%emt 0:05:49]} Kg7 {[%emt 0:05:25]} 22. Nb5 {[%emt 0:06:11]} Bf5 {[%emt 0:18:21]} 23. Rcd1 {[%emt 0:04:06]} a6 {[%emt 0:02:07]} 24. Nd4 {[%emt 0:01:02]} Be4 {[%emt 0:01:58]} 25. Nb3 {[%emt 0:00:38]} Bxf3 {[%emt 0:03:51]} 26. Qxf3 {[%emt 0:00:19]} Bxb2 {[%emt 0:00:38]} 27. Rxd5 {[%emt 0:00:45]} b6 {[%emt 0:04:39]} 28. Qxf6+ {[%emt 0:00:32]} Bxf6 {[%emt 0:00:03]} 29. Kf1 {[%emt 0:00:29]} Rxd5 {[%emt 0:01:57]} 30. Rxd5 {[%emt 0:00:07]} Rc8 {[%emt 0:00:05]} 31. Ke2 {[%emt 0:00:25]} Rc4 {[%emt 0:01:57]} 32. Rd2 {[%emt 0:00:53]} Ra4 {[%emt 0:01:41]} 33. Kd3 {[%emt 0:00:11]} g5 {[%emt 0:01:35]} 34. h3 {[%emt 0:00:30]} h4 {[%emt 0:00:37]} 35. Rc2 {[%emt 0:00:50]} Be5 {[%emt 0:01:05]} 36. Nd2 {[%emt 0:00:25]} f6 {[%emt 0:02:30]} 37. Nc4 {[%emt 0:00:31]} Bc7 {[%emt 0:00:41]} 38. Nd2 {[%emt 0:00:16]} Bd6 {[%emt 0:00:25]} 39. Nc4 {[%emt 0:00:21]} Bc5 {[%emt 0:00:21]} 40. Nd2 {[%emt 0:00:09]} Kg6 {[%emt 0:00:36]} 41. Nb3 {[%emt 0:00:32]} Be7 {[%emt 0:00:12]} 42. Nd4 {[%emt 0:00:16]} Bd6 {[%emt 0:00:44]} 43. Ke4 {[%emt 0:00:27]} Be5 {[%emt 0:00:34]} 44. Kd5 {[%emt 0:00:26]} b5 {[%emt 0:00:46]} 45. Nc6 {[%emt 0:00:09]} Bh2 {[%emt 0:00:40]} 46. Ke6 {[%emt 0:00:38]} Re4+ {[%emt 0:00:38]} 47. Kd5 {[%emt 0:00:25]} Ra4 {[%emt 0:00:59]} 48. Ke6 {[%emt 0:00:05]} Re4+ {[%emt 0:00:38]} 49. Kd5 {[%emt 0:00:06]} f5 {[%emt 0:00:32]} 50. Nd4 {[%emt 0:01:01]} Re5+ {[%emt 0:00:17]} 51. Kc6 {[%emt 0:00:06]} g4 {[%emt 0:00:28]} 1/2-1/2